Cogmind - Beta 14 @@@ ROGUE MODE // 2024.11.13 @ 21:19:26 Player: 7604 Result: Destroyed by A5 with Heavy Tesla Rifle Performance ------------- Evolutions (6) 3000 Regions Visited (23) 4600 Robots Destroyed (204) 1020 Value Destroyed (6949) 6949 Prototype IDs (64) 1280 Alien Tech Used (3) 600 Bonus (7370) 7370 TOTAL SCORE: 24819 Bonus ------- High Alert Combat Kills 214 Follower Combat Kills 680 Aligned with FarCom 300 Met Zhirov 300 Found Hidden Lab 3000 Used Core Reset Matrix 3000 Friendly Fire -124 Cogmind --------- Core Integrity 0/1150 Matter 21/300 Energy 589/600 System Corruption 0% Temperature Cool (0) Movement Core (150) Ox2 Location -4/Lab Parts ------- > --- POWER (1) -------- (None) > --- PROPULSION (6) --- (None) > --- UTILITY (10) ----- Advanced Energy Well Transport Network Coupler > --- WEAPON (2) ------- Force Lance > --- INVENTORY (5) ---- Matter Compressor (0) Enhanced Nova Cannon Improved Plasma Cutter PL-3XN's Ring of Power Peak State ------------ > --- POWER ------------ Fusion Reactor > --- PROPULSION ------- Cooled Nuclear Pulse Thruster Cooled Nuclear Pulse Thruster Cooled Nuclear Pulse Thruster Impulse Thruster Impulse Thruster Array > --- UTILITY ---------- Medium Storage Unit Advanced Weight Redist. System Transport Network Coupler Experimental Propulsion Shielding Hardened Medium Armor Plating Advanced Focal Shield Hacking Suite Advanced Hacking Suite System Shield Improved System Shield > --- WEAPON ----------- Compact Linear Accelerator Improved Remote Datajack > --- INVENTORY -------- Neutrino Core Field Propulsion Drive Cooled Nuclear Pulse Thruster Advanced Energy Well ECM Suite Transdimensional Reconstructor Micro-nuke Launcher Field Lobotomy Kit Improved Plasma Cutter PL-3XN's Ring of Power [Rating: 112] Favorites ----------- Power Light Nuclear Core Engine Light Angular Momentum Engine Power Core Light Nuclear Core Reactor Fusion Reactor Propulsion Light Treads Treads Light Treads Leg Aluminum Leg Wheel Wheel Flight Unit Improved VTOL Module Utility Hacking Suite Device Improved Heat Sink Storage Medium Storage Unit Processor Transport Network Coupler Hackware Hacking Suite Protection Light Armor Plating Weapon Advanced Beam Cannon Energy Gun EM Pulse Gun Energy Cannon Advanced Beam Cannon Ballistic Gun Improved Assault Rifle Ballistic Cannon Compact Linear Accelerator Launcher Proton Missile Launcher Special Weapon Improved Remote Datajack Impact Weapon Flail Slashing Weapon Power Sword Piercing Weapon Force Lance Build | -11 -10 -10 -9 -9 -9 -8 -8 -7 -7 -7 -7 -7 -7 -5 -5 -5 -5 -4 -4 -4 -4 -4 -4 ------- Run | Yrd Mat Min Mat Min Exi Min Mat Fac Was Fac Sto Rec Scr Fac Upp Upp Zhi Pro Fac Was Fac Arm Lab Slots Evolved 12 | . . . 2 . . . 2 2 . . . . . 4 . . . . 2 . . . . Power . | . . . . . . . . . . . . . . . . . . . . . . . . Propulsion 4 | . . . . . . . 1 2 . . . . . 1 . . . . . . . . . Utility 8 | . . . 2 . . . 1 . . . . . . 3 . . . . 2 . . . . Weapon . | . . . . . . . . . . . . . . . . . . . . . . . . Parts Attached 303 | 7 18 12 29 . . 5 33 29 . 7 15 3 3 53 1 29 9 3 26 1 10 10 . Power 26 | 1 2 1 2 . . 1 1 6 . 1 5 . . 1 . 1 1 . 1 . 1 1 . Engine 11 | 1 2 1 1 . . 1 1 2 . . 2 . . . . . . . . . . . . Core 11 | . . . 1 . . . . 4 . 1 3 . . 1 . 1 . . . . . . . Reactor 4 | . . . . . . . . . . . . . . . . . 1 . 1 . 1 1 . Propulsion 64 | 2 4 4 7 . . . 6 7 . 1 2 1 . 9 . 6 6 . 6 . 2 1 . Treads 21 | . 2 3 7 . . . 6 . . . . . . . . 3 . . . . . . . Leg 4 | 2 2 . . . . . . . . . . . . . . . . . . . . . . Wheel 3 | . . 1 . . . . . . . . . . . . . 2 . . . . . . . Hover . | . . . . . . . . . . . . . . . . . . . . . . . . Flight 36 | . . . . . . . . 7 . 1 2 1 . 9 . 1 6 . 6 . 2 1 . Utility 127 | 2 6 2 13 . . 1 17 7 . 3 7 . . 32 . 13 . 3 13 . 5 3 . Device 53 | 1 5 2 5 . . . 4 3 . . 2 . . 13 . 7 . 1 7 . 2 1 . Storage 13 | 1 1 . 1 . . . . 1 . . . . . 4 . 2 . . 1 . 1 1 . Processor 2 | . . . . . . . . . . . . . . . . 1 . . 1 . . . . Hackware 13 | . . . . . . . . 1 . 1 2 . . 4 . . . 1 1 . 2 1 . Protection 46 | . . . 7 . . 1 13 2 . 2 3 . . 11 . 3 . 1 3 . . . . Artifact . | . . . . . . . . . . . . . . . . . . . . . . . . Weapon 86 | 2 6 5 7 . . 3 9 9 . 2 1 2 3 11 1 9 2 . 6 1 2 5 . Energy Gun 8 | 2 3 . 1 . . . . . . . . . . 1 . . . . . . 1 . . Energy Cannon 17 | . . . 4 . . 2 7 2 . . . . . 1 . . . . . . . 1 . Ballistic Gun 8 | . 3 3 1 . . . . . . . . . 1 . . . . . . . . . . Ballistic Cannon 8 | . . . . . . . . . . . . . . 3 . 2 1 . 2 . . . . Launcher 13 | . . 2 1 . . 1 1 3 . 1 . . . 1 . 3 . . . . . . . Special Weapon 12 | . . . . . . . . . . . . . . 1 1 2 . . 4 . 1 3 . Impact Weapon 3 | . . . . . . . . . . . . . 1 2 . . . . . . . . . Slashing Weapon 16 | . . . . . . . 1 4 . 1 1 2 1 2 . 2 1 . . 1 . . . Piercing Weapon 1 | . . . . . . . . . . . . . . . . . . . . . . 1 . Special Melee Weapon . | . . . . . . . . . . . . . . . . . . . . . . . . Unidentified Prototypes 16 | . 1 . 2 . . . . . . . 1 . . 8 . . 2 . 1 . . . 1 Corrupted Parts 4 | 1 1 . . . . . . . . . . . . 1 . 1 . . . . . . . System Corruption 19 | 1 8 . . . . . . . . . . . . 3 . 7 . . . . . . . Parts Lost 78 | . 5 1 5 . . 2 6 2 . . 6 . . 8 . 16 . . 2 . 9 15 1 Power 10 | . 2 . 1 . . 1 . 1 . . . . . 1 . 1 . . . . 1 2 . Propulsion 23 | . 1 . . . . . 1 1 . . 2 . . 5 . 6 . . . . 1 6 . Utility 35 | . . . 4 . . 1 3 . . . 3 . . 2 . 8 . . 1 . 6 6 1 Weapon 10 | . 2 1 . . . . 2 . . . 1 . . . . 1 . . 1 . 1 1 . Highest Loss Streak 9 | . 2 1 1 . . 2 4 1 . . 5 . . 4 . 7 . . 2 . 7 9 1 To Critical Strikes . | . . . . . . . . . . . . . . . . . . . . . . . . Average Slot Usage (%) 91 | . 99 100 98 100 79 97 94 95 92 92 80 92 92 96 88 60 64 97 94 84 81 79 21 Engine 3 | . 14 14 . . . 8 8 4 . . 2 . . . . . . . . . . . . Core 4 | . . . 10 11 11 . . 2 7 7 3 7 7 4 5 3 3 . . . . . . Treads 11 | . 3 27 22 22 22 22 26 . . . . . . . . 3 3 . . . . . . Leg 2 | . 24 . . . . . . . . . . . . . . . . . . . . . . Flight 12 | . . . . . . . . 36 38 38 32 38 38 34 29 2 8 35 27 26 25 24 . Device 14 | . 13 14 20 22 22 22 15 14 15 8 11 7 7 11 17 10 6 8 11 5 6 12 . Storage 9 | . 14 14 11 11 11 11 9 7 7 7 7 7 7 5 5 8 11 7 5 5 4 5 5 Hackware 6 | . . . . . . . . 6 7 13 8 15 15 20 17 11 11 17 17 21 21 15 5 Protection 8 | . . . 11 11 11 11 16 7 7 7 5 7 7 6 5 3 3 3 7 10 7 . . Energy Gun 1 | . 21 . . . . . . . . . . . . . . . . . . . . 1 . Energy Cannon 7 | . . . 19 22 2 20 17 4 . . . . . . . . . . . . . 3 . Ballistic Gun 2 | . 6 27 2 . . . . . . . . . . . . . . . . . . . . Slashing Weapon 1 | . . . . . . . . 6 7 6 5 7 7 5 5 3 3 5 1 . . . . Peak Build Rating 112 | 7 13 14 23 21 21 24 40 46 45 46 47 46 46 93 73 74 84 90 112 105 104 105 23 Average Rating 40 | 6 9 13 20 21 16 22 34 41 45 45 34 42 42 68 68 49 54 88 100 98 93 94 22 On Entrance 46 | . 7 13 14 21 21 16 24 40 45 45 46 42 42 43 78 73 60 84 90 98 98 93 23 Naked Turns . | . . . . . . . . . . . . . . . . . . . . . . . . Heaviest Build 116 | 13 32 34 100 98 98 102 116 107 29 29 26 26 26 42 29 48 48 40 43 37 37 45 9 Greatest Support 64 | 20 40 40 43 40 40 40 64 62 32 32 26 27 27 44 29 39 33 42 50 41 47 39 3 Greatest Overweight (x) 35 | 1 2 1 2 2 2 2 2 35 . 1 . . . 3 . 5 1 . . . . 3 2 Average Overweight (x) . | . . . . 2 2 2 1 . . . . . . . . . . . . . . . 2 Largest Inventory Capacity 25 | 8 15 15 25 25 25 25 25 25 10 10 10 10 10 15 10 10 10 10 10 10 10 5 5 Average Capacity 15 | 7 14 15 19 25 25 25 25 10 10 10 10 10 10 11 10 9 10 10 10 10 9 5 5 Most Carried 25 | 4 15 15 24 25 25 24 25 25 10 10 10 10 10 15 10 10 10 10 10 10 10 5 4 Average Carried 14 | 3 12 14 16 24 24 22 24 10 9 9 9 9 10 10 10 8 9 9 9 9 9 4 4 Final Capacity 25 | 8 15 15 25 25 25 25 25 10 10 10 10 10 10 10 10 10 10 10 10 10 5 5 5 Final Carried 25 | 4 15 14 24 25 25 23 25 10 10 10 10 10 10 10 10 10 10 10 10 10 5 4 4 Class Distribution -------------------- 37% | Scavenger-Mutant 20% | Mutant 14% | Hacker-Sprinter 8% | Hacker-Scout 7% | Sprinter 7% | Hacker-Mutant Dominant Class ---------------- Mutant | -10/Materials Scavenger-Mutant | -10/Mines Scavenger-Mutant | -9/Materials Scavenger-Mutant | -9/Mines Scavenger-Mutant | -9/Exiles Scavenger-Mutant | -8/Mines Mutant | -8/Materials Sprinter | -7/Factory Sprinter | -7/Waste Hacker-Sprinter | -7/Factory Sprinter | -7/Storage Hacker-Sprinter | -7/Recycling Hacker-Sprinter | -7/Scraptown Hacker-Sprinter | -5/Factory Hacker-Sprinter | -5/Upper Caves Hacker-Mutant | -5/Upper Caves Hacker-Mutant | -5/Zhirov Hacker-Sprinter | -4/Proximity Caves Hacker-Scout | -4/Factory Hacker-Scout | -4/Waste Hacker-Scout | -4/Factory Hacker-Scout | -4/Armory Mutant | -4/Lab Resources | -11 -10 -10 -9 -9 -9 -8 -8 -7 -7 -7 -7 -7 -7 -5 -5 -5 -5 -4 -4 -4 -4 -4 -4 ----------- Run | Yrd Mat Min Mat Min Exi Min Mat Fac Was Fac Sto Rec Scr Fac Upp Upp Zhi Pro Fac Was Fac Arm Lab Matter Collected 5051 | 257 380 439 511 21 . 94 449 343 . 101 150 110 45 406 37 835 184 106 320 . 215 48 . Remotely . | . . . . . . . . . . . . . . . . . . . . . . . . Salvage Created 8355 | 29 856 209 1562 . . 131 1927 676 . 299 75 125 . 682 . 528 328 . 784 . 100 44 . Parts 440 | 6 57 6 90 . . 3 96 50 . 11 2 5 . 40 . 26 4 . 37 . 5 2 . Haulers Intercepted 19 | . 2 . 3 . . . 5 1 . 4 . . . 2 . . . . 2 . . . . Recyclers Shooed 4 | . . . . . . . 2 1 . . . . . 1 . . . . . . . . . Parts Field Recycled . | . . . . . . . . . . . . . . . . . . . . . . . . Retrieved Matter . | . . . . . . . . . . . . . . . . . . . . . . . . Parts Self-Destructed 35 | . . . . . . . . . . . . . . . . 31 4 . . . . . . Prevented 3 | . . . . . . . . . . . . . . . . 3 . . . . . . . Kills | -11 -10 -10 -9 -9 -9 -8 -8 -7 -7 -7 -7 -7 -7 -5 -5 -5 -5 -4 -4 -4 -4 -4 -4 ------- Run | Yrd Mat Min Mat Min Exi Min Mat Fac Was Fac Sto Rec Scr Fac Upp Upp Zhi Pro Fac Was Fac Arm Lab Combat Hostiles Destroyed 138 | . 17 13 32 . . 3 30 5 . 2 1 1 . 7 . 17 . . 7 . 1 2 . Melee 8 | . . . . . . . . 3 . . 1 1 . 2 . 1 . . . . . . . Guns 36 | . 17 11 7 . . . . . . . . . . . . . . . . . 1 . . Cannons 57 | . . . 19 . . 1 22 . . . . . . 2 . 10 . . 1 . . 2 . AOE 30 | . . 2 5 . . 1 4 2 . 2 . . . 3 . 5 . . 6 . . . . Classes Destroyed 18 | 1 6 2 2 . . . 4 1 . . . . . . . 1 . . 1 . . . . Worker 11 | . . . . . . . 1 4 . . . . . 2 . . . . 4 . . . . Builder 5 | . . . 1 . . . . 2 . . . . . . . . . . 2 . . . . Tunneler 1 | 1 . . . . . . . . . . . . . . . . . . . . . . . Hauler 19 | . 2 . 3 . . . 5 1 . 4 . . . 2 . . . . 2 . . . . Recycler 6 | . . . . . . . 4 1 . . . . . . . . . . 1 . . . . Mechanic 2 | . 1 . . . . . . 1 . . . . . . . . . . . . . . . Operator 10 | . 1 . 2 . . . 2 2 . . . . . 1 . . . . 1 . 1 . . Watcher 21 | . 3 . 2 . . . 4 4 . . . . . 5 . . . . 2 . 1 . . Swarmer 25 | . 3 3 4 . . . 4 . . . . . . . . 11 . . . . . . . Cutter 2 | . . . . . . . . . . . . . . . . . . . 2 . . . . Grunt 64 | . 14 . 16 . . 3 15 3 . 2 . . . 2 . 4 . . 5 . . . . Brawler 6 | . . . 3 . . . 1 . . . . . . 1 . 1 . . . . . . . Duelist 1 | . . . . . . . 1 . . . . . . . . . . . . . . . . Sentry 19 | . . 1 9 . . . 6 . . . 1 1 . . . 1 . . . . . . . Hunter 3 | . . . . . . . 3 . . . . . . . . . . . . . . . . Programmer 9 | . . . . . . . . 2 . . . . . 4 . . . . . . 1 2 . Samaritan 1 | . . . . . . . . . . . . . . . . 1 . . . . . . . Assembled 9 | . . 9 . . . . . . . . . . . . . . . . . . . . . Best Kill Streak 10 | 1 5 3 9 . . 3 4 6 . 2 1 1 . 3 . 9 . . 10 . 1 2 . Combat Bots Only 9 | . 4 3 8 . . 3 4 2 . 2 1 1 . 3 . 9 . . 5 . 1 2 . Max Kills in Single Turn 8 | 1 2 1 4 . . 1 4 3 . 1 1 1 . 3 . 3 . . 8 . 1 1 . Gunslinging . | . . . . . . . . . . . . . . . . . . . . . . . . Exploded 4 | . . 1 3 . . 1 4 1 . 1 . . . 3 . 3 . . 3 . . . . Melee 1 | . . . . . . . . 1 . . 1 1 . 1 . 1 . . . . . . . Uniques/NPCs Destroyed . | . . . . . . . . . . . . . . . . . . . . . . . . Combat | -11 -10 -10 -9 -9 -9 -8 -8 -7 -7 -7 -7 -7 -7 -5 -5 -5 -5 -4 -4 -4 -4 -4 -4 -------- Run | Yrd Mat Min Mat Min Exi Min Mat Fac Was Fac Sto Rec Scr Fac Upp Upp Zhi Pro Fac Was Fac Arm Lab Hostile Shots Fired 1219 | . 76 52 107 . . 20 201 94 . 9 137 27 . 74 1 126 . 2 78 . 123 84 8 Missed 465 | . 14 9 30 . . 5 39 50 . 8 67 10 . 45 1 45 . 1 46 . 71 22 2 Damage Taken 12126 | . 696 562 999 . . 300 2443 754 . 10 632 65 . 692 . 1588 . 23 583 . 1338 1284 157 Core 2556 | . 76 66 221 . . 34 158 126 . 10 165 15 . 140 . 405 . . 142 . 349 520 129 Absorbed by Shields 191 | . . . . . . . . 35 . . . 55 . . . . . . . . . 101 . Redirected to Shielding 154 | . . . . . . . . . . . . . . . . . . . 94 . 60 . . Regen/Repaired (Parts) 855 | . 18 . 43 . . . 315 175 . . 15 . 136 . . . . . 67 . 86 . . Core Remaining (%) 58 | 100 . 43 . . . 36 71 . . . . . 54 . . . . 45 . . . . . Volleys Fired 493 | 1 71 43 78 . . 6 128 10 . 3 . . . 21 . 47 . 7 45 . 19 14 . Largest 2 | 2 2 2 2 . . 2 2 1 . 1 . . . 1 . 1 . 1 1 . 2 1 . Hottest 136 | 80 100 46 136 . . 136 136 68 . 39 . . . 70 . 100 . 70 70 . 81 120 . Shots Fired 824 | 2 143 80 154 3 . 11 253 10 . 3 . . . 22 . 53 . 7 45 . 21 17 . Gun 274 | 2 143 76 44 . . . . . . . . . . . . . . . . . 9 . . Cannon 500 | . . . 108 3 . 10 251 3 . . . . . 21 . 36 . 7 36 . 11 14 . Launcher 23 | . . 4 2 . . 1 2 7 . 3 . . . 1 . 3 . . . . . . . Special 27 | . . . . . . . . . . . . . . . . 14 . . 9 . 1 3 . Kinetic 278 | . 47 76 44 . . . . . . . . . . 21 . 36 . 7 36 . 11 . . Thermal 436 | . 24 . 108 3 . 10 251 3 . . . . . . . 13 . . . . 9 15 . Explosive 11 | . . 4 2 . . 1 2 2 . . . . . . . . . . . . . . . Electromagnetic 86 | 2 72 . . . . . . 5 . 3 . . . 1 . 3 . . . . . . . Robot Hit Streak 18 | 1 11 11 18 1 . 3 15 4 . 7 . . . 8 . 8 . . 7 . 8 4 . Robot Miss Streak 5 | 1 5 3 5 2 . 2 5 . . . . . . 3 . 3 . . 5 . 1 1 . Penetration Max . | . . . . . . . . . . . . . . . . . . . . . . . . Secondary Targets 2 | . . 1 1 . . . . . . . . . . . . . . . . . . . . Max Gunslinging Chain 1 | . . 1 1 . . . . . . . . . . . . . . . . . . . . Shots Hit Robots 555 | 1 76 48 106 1 . 7 163 24 . 16 5 5 . 22 . 32 11 . 20 . 12 6 . Core Hits 298 | 1 40 22 43 . . 5 61 37 . 7 1 2 . 23 . 27 3 . 17 . 5 4 . Critical Kills 5 | . . . 1 . . 1 3 . . . . . . . . . . . . . . . . Critical Parts Destroyed 1 | . 1 . . . . . . . . . . . . . . . . . . . . . . Critical Strikes 21 | . 3 . 1 . . 1 3 2 . 1 2 . . 1 . 4 1 . . . 2 . . Burn 4 | . 2 . . . . . . . . . . . . . . 1 . . . . 1 . . Meltdown 5 | . . . 1 . . 1 3 . . . . . . . . . . . . . . . . Destroy 1 | . 1 . . . . . . . . . . . . . . . . . . . . . . Blast 5 | . . . . . . . . . . . . . . 1 . 3 . . . . 1 . . Sever 6 | . . . . . . . . 2 . 1 2 . . . . . 1 . . . . . . Melee Attacks 174 | . . . . . . . 1 51 . 27 18 6 . 43 2 3 11 . 8 . . 4 . Impact . | . . . . . . . . . . . . . . . . . . . . . . . . Slashing 170 | . . . . . . . 1 51 . 27 18 6 . 43 2 3 11 . 8 . . . . Piercing 4 | . . . . . . . . . . . . . . . . . . . . . . 4 . Sneak Attacks 14 | . . . . . . . . 2 . 3 . 1 . 5 . . . . 3 . . . . Combat Hostiles 1 | . . . . . . . . . . . . 1 . . . . . . . . . . . Follow-up Attacks . | . . . . . . . . . . . . . . . . . . . . . . . . Damage Inflicted 20779 | 13 1085 895 2582 21 . 218 3898 2244 . 1129 273 295 . 2416 . 1447 883 . 2476 . 406 498 . Guns 2546 | 13 1062 747 488 . . . . . . . . . . . . . . . . . 236 . . Cannons 7389 | . . . 1612 21 . 122 3591 62 . . . . . 269 . 970 . . 402 . 108 232 . Explosions 5529 | . . 140 435 . . 96 209 1097 . 158 . . . 976 . 308 . . 1787 . 57 266 . Melee 5007 | . . . . . . . . 1083 . 971 273 295 . 1171 . 44 883 . 287 . . . . Ramming 183 | . 23 8 47 . . . 98 2 . . . . . . . . . . . . 5 . . Kinetic 3424 | . 440 747 488 . . . . . . . . . . 269 . 970 . . 402 . 108 . . Thermal 7611 | . 203 . 1612 21 . 122 3591 62 . . . . . . . 173 . . 1302 . 293 232 . Explosive 2900 | . . 140 435 . . 96 209 346 . . . . . 923 . . . . 485 . . 266 . Electromagnetic 1654 | 13 419 . . . . . . 751 . 158 . . . 53 . 260 . . . . . . . Impact . | . . . . . . . . . . . . . . . . . . . . . . . . Slashing 5007 | . . . . . . . . 1083 . 971 273 295 . 1171 . 44 883 . 287 . . . . Piercing . | . . . . . . . . . . . . . . . . . . . . . . . . Highest Corruption 20 | 1 13 13 10 10 10 10 1 3 12 12 13 13 . 6 6 17 17 17 3 11 12 19 20 Average Corruption 8 | 1 7 13 5 10 10 10 1 1 8 12 12 13 . 3 6 15 17 17 2 7 11 14 19 Corruption Purged . | . . . . . . . . . . . . . . . . . . . . . . . . Corruption Blocked . | . . . . . . . . . . . . . . . . . . . . . . . . Effects 473 | . 49 44 66 23 22 3 22 2 2 17 21 22 . 22 3 78 11 5 . 3 32 23 3 Message Errors 115 | . 7 13 16 5 6 2 4 . . 2 6 7 . 6 . 21 1 1 . 1 10 6 1 Matter Fused 116 | . 9 8 14 9 9 1 7 . . 6 7 7 . 3 1 15 5 2 . . 6 6 1 Heat Flow Errors 53 | . 10 4 6 2 3 . 2 1 . 3 2 2 . 2 1 10 . 1 . . 3 1 . Energy Discharges 50 | . 2 6 14 2 1 . 3 . . 1 2 1 . 1 1 8 . 1 . . 5 2 . Parts Rejected 4 | . . . 1 . . . . . . 1 . . . . . 2 . . . . . . . Parts Fused 5 | . 2 . 1 . . . . . . 1 . 1 . . . . . . . . . . . Data Loss (minor) 54 | . 3 7 5 2 2 . 5 1 . . 3 2 . 3 . 13 2 . . . 2 3 1 Data Loss (major) 20 | . 6 2 3 . 1 . 1 . 1 1 . 1 . 3 . . 1 . . . . . . Misfires 23 | . 5 1 2 3 . . . . . . . . . 1 . 7 . . . . 1 3 . Alerts 11 | . 1 1 2 . . . . . . . . . . 3 . 1 2 . . . 1 . . Misdirections 13 | . . . . . . . . . 1 2 1 1 . . . . . . . 2 4 2 . Weapon Failures 9 | . 4 2 2 . . . . . . . . . . . . 1 . . . . . . . Overload Shots . | . . . . . . . . . . . . . . . . . . . . . . . . Overflow Damage 1400 | . . 4 83 . . . 35 282 . 92 . . . 231 . 23 180 . 403 . 40 27 . Projectiles 178 | . . . 25 . . . 31 . . . . . . 14 . 8 . . 73 . . 27 . Explosions 441 | . . 4 58 . . . . 33 . . . . . . . 15 . . 291 . 40 . . Melee 781 | . . . . . . . 4 249 . 92 . . . 217 . . 180 . 39 . . . . Knockbacks 12 | . . . 1 . . . 1 . . . . . . 2 . 4 . . 3 . 1 . . Impact 2 | . . . 1 . . . 1 . . . . . . . . . . . . . . . . Kinetic 9 | . . . . . . . . . . . . . . 2 . 3 . . 3 . 1 . . Secondary 1 | . . . . . . . . . . . . . . . . 1 . . . . . . . Self-Inflicted Damage 555 | . . . 8 . . 47 . 113 . . . . . . . 19 . . 29 . 339 . . Shots 10 | . . . 1 . . 1 . 2 . . . . . . . 1 . . 1 . 4 . . Rammed 25 | . 1 1 6 . . . 7 1 . . . . . . . . . . . . 9 . . Targets Rammed 31 | . 6 1 6 . . . 8 1 . . . . . . . . . . . . 9 . . Kicked 5 | . 5 . . . . . . . . . . . . . . . . . . . . . . Crushed 1 | . . . . . . . 1 . . . . . . . . . . . . . . . . Highest Temperature 329 | 18 264 264 329 246 245 46 303 155 35 303 136 137 28 214 175 253 . 269 32 . 227 110 . Average Temperature 52 | 12 68 60 80 112 122 25 64 14 16 101 23 29 10 46 136 91 . 72 8 . 65 42 . Received Heat Transfer 3068 | . 348 266 369 . . 153 891 126 . 6 228 15 . 75 . 255 . 9 45 . 90 192 . Effects 1 | . 1 . . . . . . . . . . . . . . . . . . . . . . Interference 1 | . 1 . . . . . . . . . . . . . . . . . . . . . . Siege Activations . | . . . . . . . . . . . . . . . . . . . . . . . . Robots Corrupted 2 | . . . . . . . 1 . . . . . . 1 . . . . . . . . . Combat Hostiles . | . . . . . . . . . . . . . . . . . . . . . . . . Parts Fried 5 | . 2 . . . . . 1 . . . . . . 1 . 1 . . . . . . . Impact Corruptions 1 | . . . . . . . 1 . . . . . . . . . . . . . . . . Robots Melted 7 | . . . 1 . . 1 4 . . . . . . . . 1 . . . . . . . Combat Hostiles 7 | . . . 1 . . 1 4 . . . . . . . . 1 . . . . . . . Parts Melted 30 | . 1 . 5 . . 1 21 . . . . . . . . 2 . . . . . . . Heat Transferred 12573 | . 740 . 2738 37 . 222 6290 111 . . . . . . . 980 . . 850 . 420 185 . Parts Sabotaged . | . . . . . . . . . . . . . . . . . . . . . . . . Parts Stolen . | . . . . . . . . . . . . . . . . . . . . . . . . Parts Stripped . | . . . . . . . . . . . . . . . . . . . . . . . . Power Chain Reactions 1 | . . . . . . . . . . . . . . . . 1 . . . . . . . Alert | -11 -10 -10 -9 -9 -9 -8 -8 -7 -7 -7 -7 -7 -7 -5 -5 -5 -5 -4 -4 -4 -4 -4 -4 ------- Run | Yrd Mat Min Mat Min Exi Min Mat Fac Was Fac Sto Rec Scr Fac Upp Upp Zhi Pro Fac Was Fac Arm Lab Peak Influence 1120 | 5 197 172 303 67 . 62 432 883 261 355 648 475 . 604 . . . . 1120 389 482 426 . Initial 359 | . 3 39 . 67 . . 24 184 261 179 70 189 . . . . . . 18 359 272 235 . Average 197 | 3 54 41 164 41 . 56 167 473 257 253 380 389 . 114 . . . . 491 372 341 281 . Maximum Alert Level 4 | . . . 1 . . . 2 3 1 1 2 2 . 2 . . . . 4 1 2 2 . Low Security (%) 62 | 100 100 100 74 100 . 100 59 5 . 15 27 2 . 91 . . . . 31 . . 13 . Level 1 23 | . . . 25 . . . 36 17 100 84 17 33 . . . . . . 26 100 73 81 . Level 2 10 | . . . . . . . 3 63 . . 55 64 . 8 . . . . 3 . 26 4 . Level 3 2 | . . . . . . . . 13 . . . . . . . . . . 33 . . . . Level 4 . | . . . . . . . . . . . . . . . . . . . 4 . . . . Level 5 . | . . . . . . . . . . . . . . . . . . . . . . . . High Security . | . . . . . . . . . . . . . . . . . . . . . . . . Max Security . | . . . . . . . . . . . . . . . . . . . . . . . . Squads Dispatched 66 | . 5 . 7 . . . 9 11 . 1 7 . . 7 . 1 . . 10 . 2 6 . Investigation 29 | . 4 . 5 . . . 2 6 . . 2 . . 2 . . . . 5 . 1 2 . Extermination 6 | . . . . . . . . 2 . . . . . 2 . . . . 1 . . 1 . Reinforcement 23 | . 1 . 2 . . . 4 2 . 1 3 . . 3 . . . . 3 . 1 3 . Assault 2 | . . . . . . . . 1 . . . . . . . 1 . . . . . . . Garrison 6 | . . . . . . . 3 . . . 2 . . . . . . . 1 . . . . Intercept . | . . . . . . . . . . . . . . . . . . . . . . . . Searches Triggered 1 | . . . . . . . . . . . 1 . . . . . . . . . . . . Construction Impeded 2 | . . . . . . . . 1 . . . . . . . . . . 1 . . . . Haulers Reinforced 2 | . . . . . . . . 1 . 1 . . . . . . . . . . . . . Active Scanning Responses . | . . . . . . . . . . . . . . . . . . . . . . . . Cargo Convoy Interrupts 2 | . . . . . . . . 1 . . . . . 1 . . . . . . . . . Stealth | -11 -10 -10 -9 -9 -9 -8 -8 -7 -7 -7 -7 -7 -7 -5 -5 -5 -5 -4 -4 -4 -4 -4 -4 --------- Run | Yrd Mat Min Mat Min Exi Min Mat Fac Was Fac Sto Rec Scr Fac Upp Upp Zhi Pro Fac Was Fac Arm Lab Distress Signals 23 | . . . 3 . . . 5 2 . 1 4 . . 3 . . . . 3 . 1 1 . Communications Jammed 6 | . . . . . . . . . . . . . . . . . . . . . . 6 . Distress Signals 6 | . . . . . . . . . . . . . . . . . . . . . . 6 . Times Spotted 403 | . 29 14 39 . . 3 43 42 6 5 36 2 . 28 3 31 . 1 45 6 45 24 1 Peak Tracking Total 22 | . 7 3 9 . . 3 5 9 6 2 12 1 . 5 4 10 . 2 22 6 15 7 1 Tactical Retreats 63 | . 4 1 1 . . . 1 10 . . 9 1 . 12 1 1 . 1 7 . 9 5 . Traps | -11 -10 -10 -9 -9 -9 -8 -8 -7 -7 -7 -7 -7 -7 -5 -5 -5 -5 -4 -4 -4 -4 -4 -4 ------- Run | Yrd Mat Min Mat Min Exi Min Mat Fac Was Fac Sto Rec Scr Fac Upp Upp Zhi Pro Fac Was Fac Arm Lab Traps Triggered 24 | . 4 . 6 . . . . 3 . . 1 . . 2 . . . . 4 . 2 2 . Indirectly . | . . . . . . . . . . . . . . . . . . . . . . . . Trap Hack Attempts . | . . . . . . . . . . . . . . . . . . . . . . . . Triggered . | . . . . . . . . . . . . . . . . . . . . . . . . Disarmed . | . . . . . . . . . . . . . . . . . . . . . . . . Reprogrammed . | . . . . . . . . . . . . . . . . . . . . . . . . Reused . | . . . . . . . . . . . . . . . . . . . . . . . . Traps Extracted . | . . . . . . . . . . . . . . . . . . . . . . . . Installed . | . . . . . . . . . . . . . . . . . . . . . . . . Triggered 1 | . . . . . . . . . . . . . . 1 . . . . . . . . . Objects Rigged 7 | . . . . . . . . . . . . . . . . . . . 7 . . . . Exploded 4 | . . . . . . . . . . . . . . . . . . . 4 . . . . Machines | -11 -10 -10 -9 -9 -9 -8 -8 -7 -7 -7 -7 -7 -7 -5 -5 -5 -5 -4 -4 -4 -4 -4 -4 ---------- Run | Yrd Mat Min Mat Min Exi Min Mat Fac Was Fac Sto Rec Scr Fac Upp Upp Zhi Pro Fac Was Fac Arm Lab Machines Disabled 77 | . 1 2 1 . . . 1 15 . 2 1 . . 13 . . . . 22 . 5 14 . Max in Single Turn 9 | . 1 1 1 . . . 1 4 . 1 1 . . 6 . . . . 9 . 5 3 . Garrison Access 8 | . . . . . . . . 2 . . 1 . . 2 . . . . 1 . 2 . . Machines Repaired . | . . . . . . . . . . . . . . . . . . . . . . . . Machines Dismantled 6 | . . . . . . . . . . . . . . . . . . . . . . 6 . Machines Sabotaged . | . . . . . . . . . . . . . . . . . . . . . . . . Overloaded Fab Kills . | . . . . . . . . . . . . . . . . . . . . . . . . Hacking | -11 -10 -10 -9 -9 -9 -8 -8 -7 -7 -7 -7 -7 -7 -5 -5 -5 -5 -4 -4 -4 -4 -4 -4 --------- Run | Yrd Mat Min Mat Min Exi Min Mat Fac Was Fac Sto Rec Scr Fac Upp Upp Zhi Pro Fac Was Fac Arm Lab Machines Accessed 139 | . 8 . 12 . 2 . 9 20 . 8 13 11 1 15 . . 6 . 17 . 9 7 1 Terminals 74 | . 6 . 9 . . . 4 12 . 4 9 5 . 10 . . . . 8 . 3 4 . Fabricators 8 | . . . . . . . . . . . . . . 1 . . . . 3 . 2 2 . Repair Stations 12 | . 1 . 1 . . . 2 2 . 1 2 . . . . . . . 2 . 1 . . Recycling Units 18 | . 1 . 1 . . . 1 1 . 2 1 6 . 1 . . . . 2 . 1 1 . Scanalyzers 8 | . . . 1 . . . 2 2 . 1 . . . 1 . . . . 1 . . . . Garrison Access 9 | . . . . . . . . 3 . . 1 . . 2 . . . . 1 . 2 . . Total Hacks 494 | . 29 . 46 . 9 . 27 52 . 23 36 27 8 55 . . 21 . 91 . 37 32 1 Successful 275 | . 15 . 26 . 9 . 17 18 . 8 23 16 8 34 . . 21 . 46 . 20 13 1 Failed 217 | . 13 . 19 . . . 10 34 . 15 13 11 . 21 . . . . 45 . 17 19 . Catastrophic 34 | . 2 . 3 . . . 1 3 . 5 2 . . 4 . . . . 7 . 2 5 . Database Lockouts 2 | . 1 . 1 . . . . . . . . . . . . . . . . . . . . Manual 205 | . 21 . 18 . 1 . 12 16 . 15 15 13 . 29 . . . . 41 . 15 8 1 Terminals 286 | . 23 . 33 . . . 12 32 . 11 26 12 . 45 . . . . 54 . 20 18 . Fabricators 34 | . . . . . . . . . . . . . . 5 . . . . 10 . 7 12 . Repair Stations 38 | . 2 . 2 . . . 6 8 . 3 5 . . . . . . . 7 . 5 . . Recycling Units 55 | . 4 . 4 . . . 3 2 . 8 4 15 . 1 . . . . 9 . 3 2 . Scanalyzers 28 | . . . 7 . . . 6 3 . 1 . . . 2 . . . . 9 . . . . Garrison Access 14 | . . . . . . . . 7 . . 1 . . 2 . . . . 2 . 2 . . Terminal Hacks 132 | . 6 . 11 . 9 . 1 10 . 2 13 4 8 22 . . 21 . 13 . 6 5 1 Record 26 | . . . . . 8 . . . . . . . 8 . . . 9 . . . . . 1 Part Schematic 10 | . . . . . . . 1 . . . . 1 . 3 . . 4 . 1 . . . . Robot Analysis 21 | . 4 . 3 . . . . 1 . . . 1 . 4 . . 4 . 2 . 1 1 . Prototype ID Bank 13 | . . . 2 . . . . 1 . . . 1 . 2 . . 4 . 2 . 1 . . Open Door 4 | . . . . . . . . . . . 3 . . . . . . . . . . 1 . Branch Access Points 5 | . . . . . . . . 1 . . 1 . . 1 . . . . 1 . 1 . . Machine Index 4 | . . . . . . . . . . . . 1 . 1 . . . . 1 . 1 . . Terminal Index 6 | . . . . . . . . 1 . 1 . . . 1 . . . . 1 . 1 1 . Fabricator Index 1 | . . . . . . . . . . . . . . 1 . . . . . . . . . Garrison Index 1 | . . . . . . . . 1 . . . . . . . . . . . . . . . Alert Level 2 | . . . 1 . . . . . . . . . . . . . . . 1 . . . . Unreport Threat 3 | . . . 1 . . . . 1 . . . . . . . . . . . . . 1 . Locate Traps 7 | . . . . . . . . 1 . . 3 . . 1 . . . . 1 . . 1 . Security Status 1 | . . . . . . . . . . . 1 . . . . . . . . . . . . Patrol Status 1 | . . . . . . . . . . . 1 . . . . . . . . . . . . Transport Status 5 | . . . 1 . . . . 2 . . . . . 2 . . . . . . . . . Investigation Status 1 | . . . . . . . . . . . 1 . . . . . . . . . . . . Recall Investigation 3 | . . . . . . . . . . . . . . 1 . . . . 2 . . . . Hauler Manifests 5 | . . . 1 . . . . 1 . 1 1 . . 1 . . . . . . . . . Registered Components 3 | . 1 . 1 . . . . . . . . . . 1 . . . . . . . . . Registered Prototypes 2 | . . . . . . . . . . . . . . 2 . . . . . . . . . Zone Layout 7 | . 1 . 1 . . . . . . . 2 . . 1 . . . . 1 . 1 . . Derelict Proto ID Bank 1 | . . . . . 1 . . . . . . . . . . . . . . . . . . Fabricator Hacks 19 | . . . . . . . . . . . . . . 4 . . . . 5 . 5 5 . Network Status 3 | . . . . . . . . . . . . . . . . . . . 1 . 1 1 . Load Schematic 7 | . . . . . . . . . . . . . . 2 . . . . 2 . 1 2 . Build 9 | . . . . . . . . . . . . . . 2 . . . . 2 . 3 2 . Repair Station Hacks 21 | . 2 . 2 . . . 4 4 . . 3 . . . . . . . 4 . 2 . . Scan Component 11 | . 1 . 1 . . . 2 2 . . 2 . . . . . . . 2 . 1 . . Repair 10 | . 1 . 1 . . . 2 2 . . 1 . . . . . . . 2 . 1 . . Recycling Unit Hacks 15 | . 1 . 1 . . . 1 . . 2 1 5 . . . . . . 3 . 1 . . Retrieve Matter 2 | . . . . . . . . . . . . . . . . . . . 1 . 1 . . Retrieve Components 13 | . 1 . 1 . . . 1 . . 2 1 5 . . . . . . 2 . . . . Scanalyzer 24 | . . . 7 . . . 6 1 . . . . . 2 . . . . 8 . . . . Insert Component 12 | . . . 3 . . . 3 1 . . . . . 1 . . . . 4 . . . . Analyze 12 | . . . 4 . . . 3 . . . . . . 1 . . . . 4 . . . . Garrison Access Hacks 7 | . . . . . . . . 1 . . 1 . . 2 . . . . 1 . 2 . . Seal Access 7 | . . . . . . . . 1 . . 1 . . 2 . . . . 1 . 2 . . Unauthorized Hacks 57 | . 6 . 5 . . . 5 2 . 4 5 7 . 4 . . . . 12 . 4 3 . Terminals 39 | . 4 . 3 . . . 3 1 . 3 2 1 . 4 . . . . 11 . 4 3 . Track 8 | . 1 . . . . . 1 . . . 1 . . . . . . . 3 . 1 1 . Assimilate 3 | . . . . . . . . . . 1 . . . . . . . . 1 . 1 . . Botnet 22 | . 2 . 2 . . . 1 1 . 2 1 1 . 4 . . . . 4 . 2 2 . Detonate 1 | . . . . . . . . . . . . . . . . . . . 1 . . . . Disrupt 2 | . . . . . . . . . . . . . . . . . . . 2 . . . . Operators 3 | . 1 . 1 . . . 1 . . . . . . . . . . . . . . . . Fabricators . | . . . . . . . . . . . . . . . . . . . . . . . . Repair Stations . | . . . . . . . . . . . . . . . . . . . . . . . . Recycling Units 16 | . 2 . 2 . . . 2 . . 1 3 6 . . . . . . . . . . . Reject 4 | . . . 1 . . . 1 . . 1 1 . . . . . . . . . . . . Recyclers 2 | . 1 . . . . . . . . . 1 . . . . . . . . . . . . Mask 3 | . . . 1 . . . 1 . . . 1 . . . . . . . . . . . . Tunnel 7 | . 1 . . . . . . . . . . 6 . . . . . . . . . . . Scanalyzers 1 | . . . . . . . . . . . . . . . . . . . 1 . . . . Extract 1 | . . . . . . . . . . . . . . . . . . . 1 . . . . Garrison Access 1 | . . . . . . . . 1 . . . . . . . . . . . . . . . Jam 1 | . . . . . . . . 1 . . . . . . . . . . . . . . . Data Cores Recovered 2 | . . . . . . . . 1 . . . . . 1 . . . . . . . . . Used 1 | . . . . . . . . . . . . . . 1 . . . . . . . . . Hacking Detections 108 | . 6 . 9 . . . 8 19 . 8 10 8 . 12 . . . . 15 . 7 6 . Full Trace Events 23 | . 1 . 4 . . . 4 5 . . 2 1 . 1 . . . . 2 . 1 2 . Feedback Events 3 | . . . . . . . 1 1 . . 1 . . . . . . . . . . . . Corruption 3 | . . . . . . . 1 1 . . 1 . . . . . . . . . . . . Feedback Blocked . | . . . . . . . . . . . . . . . . . . . . . . . . Robot Schematics Acquired . | . . . . . . . . . . . . . . . . . . . . . . . . Robots Built 3 | . . . . . . . . . . . . . . . . . . . . . 3 . . Authchips . | . . . . . . . . . . . . . . . . . . . . . . . . Time 169 | . . . . . . . . . . . . . . . . . . . . . 169 . . Total Robot Build Rating 17 | . . . . . . . . . . . . . . . . . . . . . 17 . . Part Schematics Acquired 21 | . . . 3 . . . 3 . . . . 1 . 4 . . 4 . 6 . . . . Parts Built 7 | . . . . . . . . . . . . . . 3 . . . . 2 . 1 1 . Authchips 1 | . . . . . . . . . . . . . . 1 . . . . . . . . . Time 628 | . . . . . . . . . . . . . . 148 . . . . 258 . 93 129 . Total Part Build Rating 46 | . . . . . . . . . . . . . . 22 . . . . 11 . 7 6 . Parts Repaired 9 | . 1 . 1 . . . 2 2 . . 1 . . . . . . . 1 . 1 . . Time 443 | . 26 . 51 . . . 69 82 . . 78 . . . . . . . 94 . 43 . . Parts Recycled . | . . . . . . . . . . . . . . . . . . . . . . . . Recycled Matter . | . . . . . . . . . . . . . . . . . . . . . . . . Retrieved Matter . | . . . . . . . . . . . . . . . . . . . . . . . . Retrieved Components 39 | . 1 . 10 . . . 7 . . 1 1 10 . . . . . . 9 . . . . Parts Scanalyzed 10 | . . . 3 . . . 2 1 . . . . . 1 . . . . 3 . . . . Part Schematics Acquired 9 | . . . 3 . . . 2 . . . . . . 1 . . . . 3 . . . . Parts Damaged 2 | . . . . . . . . 1 . . . . . . . . . . 1 . . . . Bothacking | -11 -10 -10 -9 -9 -9 -8 -8 -7 -7 -7 -7 -7 -7 -5 -5 -5 -5 -4 -4 -4 -4 -4 -4 ------------ Run | Yrd Mat Min Mat Min Exi Min Mat Fac Was Fac Sto Rec Scr Fac Upp Upp Zhi Pro Fac Was Fac Arm Lab Used RIF Installer . | . . . . . . . . . . . . . . . . . . . . . . . . Robots Hacked 4 | . . . . . . . . . . . . . . . . . . . 4 . . . . Non-combat 4 | . . . . . . . . . . . . . . . . . . . 4 . . . . Combat . | . . . . . . . . . . . . . . . . . . . . . . . . Robot Hacks Applied 6 | . . . . . . . . . . . . . . . . . . . 6 . . . . no_distress 2 | . . . . . . . . . . . . . . . . . . . 2 . . . . find_chute 1 | . . . . . . . . . . . . . . . . . . . 1 . . . . find_fabricator 1 | . . . . . . . . . . . . . . . . . . . 1 . . . . find_dsf 1 | . . . . . . . . . . . . . . . . . . . 1 . . . . find_recycling 1 | . . . . . . . . . . . . . . . . . . . 1 . . . . Relay Couplers Released . | . . . . . . . . . . . . . . . . . . . . . . . . Fabnet Peak Effective % . | . . . . . . . . . . . . . . . . . . . . . . . . Robots Rewired 11 | . . . . . . . . 1 . . . 5 . . . 2 . . . . . 3 . Allies Hacked 1 | . . . . . . . . . . . . . . . . . . . . . . 1 . Hacks Repelled . | . . . . . . . . . . . . . . . . . . . . . . . . Allies | -11 -10 -10 -9 -9 -9 -8 -8 -7 -7 -7 -7 -7 -7 -5 -5 -5 -5 -4 -4 -4 -4 -4 -4 -------- Run | Yrd Mat Min Mat Min Exi Min Mat Fac Was Fac Sto Rec Scr Fac Upp Upp Zhi Pro Fac Was Fac Arm Lab Total Allies 37 | . . . . 2 . . . 1 1 1 10 5 . . . 3 . . 5 . 5 4 . Largest Group 10 | . . . . 2 2 . . 1 1 1 10 5 4 4 . 3 . . 4 . 2 3 . Highest-Rated Group 254 | . . . . 54 54 . . 16 31 26 173 128 96 96 . 156 . . 254 . 116 195 . Highest-Rated Ally 116 | . . . . 31 31 . . 16 31 26 29 40 40 40 . 85 . . 116 . 116 116 . Total Orders 6 | . . . . . . . . . . 1 . . . 1 . 1 . . . . 2 1 . STAY 2 | . . . . . . . . . . 1 . . . 1 . . . . . . . . . GUARD 1 | . . . . . . . . . . . . . . . . . . . . . . 1 . EXPLORE 1 | . . . . . . . . . . . . . . . . 1 . . . . . . . RETURN 2 | . . . . . . . . . . . . . . . . . . . . . 2 . . Ally Attacks 193 | . . . . . . . . 8 4 . 83 8 . 12 . 25 . . 34 . 14 5 . Total Damage 4701 | . . . . . . . . 106 41 . 1089 88 . 189 . 1238 . . 1512 . 171 267 . Kills 30 | . . . . . . . . 1 . . 8 . . 4 . 8 . . 7 . 2 . . Allies Corrupted 1 | . . . . . . . . . . . . . . . . . . . . . 1 . . Allies Melted 1 | . . . . . . . . . . . . . . . . . . . . . . 1 . Field Lobotomies 4 | . . . . . . . . . . . . . . . . 1 . . 1 . 1 1 . Intel | -11 -10 -10 -9 -9 -9 -8 -8 -7 -7 -7 -7 -7 -7 -5 -5 -5 -5 -4 -4 -4 -4 -4 -4 ------- Run | Yrd Mat Min Mat Min Exi Min Mat Fac Was Fac Sto Rec Scr Fac Upp Upp Zhi Pro Fac Was Fac Arm Lab Robot Analysis Total 21 | . 4 . 3 . . . . 1 . . . 1 . 4 . . 4 . 2 . 1 1 . Derelict Logs Recovered 6 | . . . . 1 . . . . . . . . . . 2 1 . 2 . . . . . Drone Launches 5 | . . . . . . . . . . . . . . . . 2 . . . . 3 . . Drone Recoveries 1 | . . . . . . . . . . . . . . . . . . . . . 1 . . Decoded 0b10 Intel 15 | . . . . . . . . . . . . . . . . . . . 15 . . . . Traps 3 | . . . . . . . . . . . . . . . . . . . 3 . . . . Items 10 | . . . . . . . . . . . . . . . . . . . 10 . . . . Patrols 1 | . . . . . . . . . . . . . . . . . . . 1 . . . . Guards 1 | . . . . . . . . . . . . . . . . . . . 1 . . . . Exploration | -11 -10 -10 -9 -9 -9 -8 -8 -7 -7 -7 -7 -7 -7 -5 -5 -5 -5 -4 -4 -4 -4 -4 -4 ------------- Run | Yrd Mat Min Mat Min Exi Min Mat Fac Was Fac Sto Rec Scr Fac Upp Upp Zhi Pro Fac Was Fac Arm Lab Turns Passed 21197 | 182 1803 1124 3696 645 714 116 3267 1352 44 416 496 464 315 2099 96 1852 249 116 843 35 716 520 37 Spaces Moved 18990 | 50 751 599 1456 201 223 28 1049 2263 167 1056 900 633 885 2826 298 927 187 475 1562 120 1416 894 24 Core 87 | 5 . . . . . . . 5 . . . . . 29 . 13 . . . . . 11 24 Treads 4353 | . 86 599 1456 201 223 28 1049 9 . . . . . . . 627 75 . . . . . . Legs 710 | 45 665 . . . . . . . . . . . . . . . . . . . . . . Wheels 99 | . . . . . . . . . . . . . . . . 99 . . . . . . . Hover . | . . . . . . . . . . . . . . . . . . . . . . . . Flight 13741 | . . . . . . . . 2249 167 1056 900 633 885 2797 298 188 112 475 1562 120 1416 883 . Fastest Speed 14 | 50 120 160 160 320 320 320 230 24 25 25 25 26 26 18 25 30 20 20 20 26 14 23 150 Average Speed 77 | 117 183 160 219 320 320 320 240 26 25 25 26 26 26 23 25 169 108 20 23 26 26 25 150 Slowest Speed 1800 | 120 260 240 320 320 320 320 305 1800 25 97 30 26 26 200 25 300 240 20 28 26 28 200 150 Overloaded Moves 48 | . . . . . . . . . . . . . . 25 . . . . . . 23 . . Propulsion Burnouts . | . . . . . . . . . . . . . . . . . . . . . . . . Robots Hopped 101 | . . . . . . . . 30 . 7 22 3 6 15 . . . . 9 . 6 3 . Cave-ins Triggered 1 | . . . . . . . . . . . . . . . . 1 . . . . . . . Teleports 1 | . . . . . . . . . . . . . . . . . . . . . . 1 . Exploration Rate (%) 58 | 4 88 78 93 58 61 7 69 51 74 31 85 96 57 44 55 84 62 72 36 87 25 46 44 Regions Visited 23 Branch Regions 13 Pre-discovered Areas 14 | . 1 1 . 1 1 . . . . . . 6 . . . . 3 1 . . . . . Known Exits Taken 4 | . . . . . . . . . . 1 1 . . 1 . . . . . . 1 . . Unknown Exits Taken 15 | 1 1 1 1 1 1 1 1 . . . . 1 1 . 1 1 1 1 . . . 1 . Scrap Searched 13 | . . 1 . 1 . . . . . . . . 4 . 1 3 . 3 . . . . . Spaces Dug 135 | . . 24 . . . . 1 16 . 4 12 . . 33 2 2 . 7 21 . 6 7 . Terrain Destroyed 508 | . . 38 14 . . 15 29 45 . 4 12 . . 105 2 21 . 7 107 . 60 49 . Melee 66 | . . . . . . . 1 16 . 4 12 . . 23 2 2 . . 4 . . 2 . Projectile 75 | . . . . . . 3 1 . . . . . . 14 . 12 . 7 25 . 7 6 . AOE 367 | . . 38 14 . . 12 27 29 . . . . . 68 . 7 . . 78 . 53 41 . Terrain Rammed . | . . . . . . . . . . . . . . . . . . . . . . . . Walls Destroyed . | . . . . . . . . . . . . . . . . . . . . . . . . Machines Disabled . | . . . . . . . . . . . . . . . . . . . . . . . . Actions | -11 -10 -10 -9 -9 -9 -8 -8 -7 -7 -7 -7 -7 -7 -5 -5 -5 -5 -4 -4 -4 -4 -4 -4 --------- Run | Yrd Mat Min Mat Min Exi Min Mat Fac Was Fac Sto Rec Scr Fac Upp Upp Zhi Pro Fac Was Fac Arm Lab Total 24123 | 168 1032 679 1806 205 228 44 1539 2889 168 1142 1103 926 963 4146 316 1148 215 487 1970 123 1685 1116 25 Wait 3635 | 107 149 20 188 2 . 5 282 501 . 47 158 231 79 1154 13 118 . 2 301 . 190 88 . Move 18777 | 49 750 598 1455 200 222 27 1048 2204 166 1041 859 627 875 2795 297 926 186 474 1545 119 1403 887 24 Hop 90 | . . . . . . . . 29 . 7 18 2 3 14 . . . . 8 . 6 3 . Pick Up 143 | 4 23 . 24 2 1 1 14 14 1 4 6 7 . 15 1 3 2 1 11 1 7 1 . Fast Attach 134 | 7 6 1 10 . . 1 11 5 . 2 7 3 3 19 1 20 6 1 20 1 4 5 1 Attach 87 | . 5 2 6 . . 3 7 13 . 2 6 . . 19 . 6 4 1 1 . 6 6 . Detach 44 | . 2 1 2 . 2 . 3 3 . . 5 . . 10 . 8 2 . 1 . . 5 . Swap 85 | . 7 9 13 . . 1 15 11 . 3 2 . . 15 . 3 . 1 5 . . . . Drop 195 | . 13 4 24 1 3 . 22 32 1 6 6 10 3 22 2 9 4 . 25 2 5 1 . Fire 493 | 1 71 43 78 . . 6 128 10 . 3 . . . 21 . 47 . 7 45 . 19 14 . Melee 174 | . . . . . . . 1 51 . 27 18 6 . 43 2 3 11 . 8 . . 4 . Ram 10 | . . . . . . . . 1 . . . . . . . . . . . . 9 . . Kick 5 | . 5 . . . . . . . . . . . . . . . . . . . . . . Crush 16 | . 1 1 6 . . . 8 . . . . . . . . . . . . . . . . Escape Stasis 97 | . . . . . . . . 12 . . 18 . . 19 . . . . . . 36 12 . Rewire 98 | . . . . . . . . 3 . . . 40 . . . 5 . . . . . 50 . Trap . | . . . . . . . . . . . . . . . . . . . . . . . . Miscellaneous 40 | . . . . . . . . . . . . . . . . . . . . . . 40 . Route ------- -11/Scrapyard -10/Materials (discovered 4 exits: *Mat x2 / [*Min x2]) -10/Mines -9/Materials (discovered 5 exits: *Mat x3 / [*Min x2]) -9/Mines (discovered 3 exits: *Mat x2 / *Exi) -9/Exiles -8/Mines -8/Materials -7/Factory (discovered 5 exits: [*Fac] / *Sto x2 / *Low x2) -7/Waste -7/Factory -7/Storage -7/Recycling (discovered 2 exits: *Fac / *Scr) -7/Scraptown -5/Factory (discovered 3 exits: *Fac / *Upp x2) -5/Upper Caves -5/Upper Caves (discovered 2 exits: *Fac / *Zhi) -5/Zhirov -4/Proximity Caves -4/Factory (discovered 6 exits: *Res x3 / Upp x2 / Arm) -4/Waste -4/Factory (discovered 4 exits: *Res / *Upp x2 / *Arm) -4/Armory -4/Lab History --------- Turn | Location | Event 14 | -11/Scrapyard | Discovered new exit (range 15) 183 | -11/Scrapyard | Entered Materials 306 | -10/Materials | Build established: Mutant 1057 | -10/Materials | Repaired Seismic Detector 1114 | -10/Materials | Discovered new exit (range 3) 1387 | -10/Materials | Discovered new exit (range 12) 1529 | -10/Materials | Discovered new exit (range 9) 1533 | -10/Materials | Central database locked down 1578 | -10/Materials | System corruption reached 10% 1584 | -10/Materials | Discovered new exit (range 8) 1986 | -10/Materials | Entered Mines 2010 | -10/Mines | Learned location of Storage (-7) 2144 | -10/Mines | Assembled infested the area 2319 | -10/Mines | Core integrity fell below 50% 2627 | -10/Mines | Build established: Scavenger-Mutant 3086 | -10/Mines | Discovered new exit (range 14) 3110 | -10/Mines | Entered Materials 3110 | -9/Materials | Evolved 2 slots: Utility x2 3290 | -9/Materials | Destroyed 8 combat bots 3346 | -9/Materials | Discovered new exit (range 14) 4065 | -9/Materials | Discovered new exit (range 12) 4331 | -9/Materials | Discovered new exit (range 16) 4699 | -9/Materials | Repaired Adv. Beam Cannon 5273 | -9/Materials | Discovered new exit (range 16) 5312 | -9/Materials | Central database locked down 5725 | -9/Materials | Discovered new exit (range 16) 6180 | -9/Materials | Core integrity fell below 50% 6181 | -9/Materials | System corruption reached 10% 6806 | -9/Materials | Entered Mines 6819 | -9/Mines | Learned location of Zion (-7) 6832 | -9/Mines | Discovered new exit (range 9) 7162 | -9/Mines | Discovered new exit (range 14) 7437 | -9/Mines | Deemed a non-threat by the Exiles lab entrance 7437 | -9/Mines | Discovered new exit (range 5) 7451 | -9/Mines | Entered Exiles 7451 | -9/Exiles | Accompanied by 2 allies 7481 | -9/Exiles | Led the pair of lost Derelicts to a safe place 7528 | -9/Exiles | Met 8R-AWN 7585 | -9/Exiles | Met EX-HEX 7677 | -9/Exiles | Met EX-BIN 7722 | -9/Exiles | Aligned with FarCom system 7725 | -9/Exiles | Given EX-Vault access code 7802 | -9/Exiles | Opened EX-Vault 7825 | -9/Exiles | Found Field Lobotomy Kit 7897 | -9/Exiles | Warned to stay clear of 0b10 Research branches 7999 | -9/Exiles | Met EX-DEC 8130 | -9/Exiles | Discovered new exit (range 12) 8165 | -9/Exiles | Left Exiles lab with Field Lobotomy Kit 8165 | -9/Exiles | Entered Mines 8232 | -8/Mines | Discovered new exit (range 8) 8281 | -8/Mines | Entered Materials 8281 | -8/Materials | Evolved 2 slots: Propulsion x1, Utility x1 8740 | -8/Materials | Repaired Hvy. Armor Plating 9870 | -8/Materials | Build established: Mutant 10032 | -8/Materials | Garrison activated, responded to threat 10339 | -8/Materials | Lost 4 parts (1n1u2w) 11323 | -8/Materials | Repaired Lgt. Angular Momentum Engine 11513 | -8/Materials | Discovered new exit (range 5) 11548 | -8/Materials | Entered Factory 11548 | -7/Factory | Evolved 2 slots: Propulsion x2 11690 | -7/Factory | Repaired Imp. Light Armor Plating 11863 | -7/Factory | Build established: Sprinter 12251 | -7/Factory | Repaired Xenon Bombardment Thruster 12443 | -7/Factory | Discovered new exit (range 6) 12454 | -7/Factory | Discovered new exit (range 13) 12468 | -7/Factory | Identified exit to Storage 12468 | -7/Factory | Identified exit to Lower Caves 12624 | -7/Factory | Cargo convoy interrupted 12748 | -7/Factory | First assault squad dispatched 12811 | -7/Factory | Discovered new exit (range 5) 12900 | -7/Factory | Manually triggered Chute Trap 12900 | -7/Factory | Sucked down chute 12900 | -7/Factory | Entered Waste 12901 | -7/Waste | Met a frightened Derelict 12905 | -7/Waste | Spotted C-40 Crusher 12915 | -7/Waste | EMP discharged 12915 | -7/Waste | System corruption reached 10% 12927 | -7/Waste | Spotted C-40 Crusher 12934 | -7/Waste | Spotted C-40 Crusher 12934 | -7/Waste | Spotted C-40 Crusher 12935 | -7/Waste | Spotted C-40 Crusher 12941 | -7/Waste | Spotted C-40 Crusher 12941 | -7/Waste | Discovered new exit (range 10) 12944 | -7/Waste | Entered Factory 13042 | -7/Factory | Discovered exit to Storage (range 3) 13328 | -7/Factory | Build established: Hacker-Sprinter 13360 | -7/Factory | Entered Storage 13477 | -7/Storage | Assisted by bots powering up and referring to "LRC-V3" 13499 | -7/Storage | Lost 5 parts (2n2u1w) 13500 | -7/Storage | Garrison activated, responded to threat 13546 | -7/Storage | Lost 3 allies 13601 | -7/Storage | Lost 5 allies 13724 | -7/Storage | Repaired Broken Field Propulsion Drive 13760 | -7/Storage | Search patrols dispatched 13811 | -7/Storage | Identified exit to Recycling 13855 | -7/Storage | Used back door to open Recycling access 13856 | -7/Storage | Entered Recycling 13895 | -7/Recycling | Discovered new exit (range 12) 14083 | -7/Recycling | Scanned before Scraplab entrance 14273 | -7/Recycling | Discovered new exit (range 11) 14274 | -7/Recycling | Entered Scraplab 14320 | -7/Recycling | Entered Scraptown 14320 | -7/Scraptown | Accompanied by 4 allies 14320 | -7/Scraptown | System corruption cleaned by C-Scrubber 14384 | -7/Scraptown | Discovered new exit (range 11) 14403 | -7/Scraptown | Visited Shadow of the Wyrm 14409 | -7/Scraptown | Visited Cyclists 14414 | -7/Scraptown | Visited Cave Peace 14433 | -7/Scraptown | Visited Scrapoid Research Area 14490 | -7/Scraptown | Visited TADAMA 14498 | -7/Scraptown | Visited CR-KLE's Repair Center 14500 | -7/Scraptown | CR-KLE repaired 7 parts 14516 | -7/Scraptown | Turned away by UFD registrar 14635 | -7/Scraptown | Entered Factory 14635 | -5/Factory | Accompanied by 4 allies 14635 | -5/Factory | Evolved 4 slots: Propulsion x1, Utility x3 15912 | -5/Factory | Fabricated Q-thruster (x2) 15972 | -5/Factory | Cargo convoy interrupted 16177 | -5/Factory | Identified exit to Upper Caves 16213 | -5/Factory | Found PL-3XN's Ring of Power 16215 | -5/Factory | Found Prototype Device 16215 | -5/Factory | Identified Thermal Barrier 16219 | -5/Factory | Found Prototype Device 16219 | -5/Factory | Identified Exp. Shock Absorption System 16231 | -5/Factory | Found Prototype Device 16231 | -5/Factory | Identified Adv. Kinecellerator 16235 | -5/Factory | Found Prototype Device 16235 | -5/Factory | Identified Exp. Actuator Array 16381 | -5/Factory | Fabricated Cld. Nuclear Pulse Thruster? 16639 | -5/Factory | Lost 4 parts (1p1n2u) 16727 | -5/Factory | Discovered new exit (range 12) 16734 | -5/Factory | Entered Upper Caves 16822 | -5/Upper Caves | Learned location of 2 exits from Factory 16826 | -5/Upper Caves | Discovered new exit (range 10) 16827 | -5/Upper Caves | Learned 4 Factory zone layouts 16830 | -5/Upper Caves | Entered another Upper Caves area 16883 | -5/Upper Caves | Lost 7 parts (3n4u) 16897 | -5/Upper Caves | Destroyed 9 combat bots 16930 | -5/Upper Caves | Discovered new exit (range 30) 17013 | -5/Upper Caves | System corruption reached 10% 17023 | -5/Upper Caves | Spotted B-75 Beast 17024 | -5/Upper Caves | Assimilated B-75 Beast with FLK Orb 17146 | -5/Upper Caves | Attracted the attention of an 0b10 outpost 17202 | -5/Upper Caves | Lost 6 parts (1p2n2u1w) 17221 | -5/Upper Caves | Crushed by falling debris 17281 | -5/Upper Caves | Learned Factory emergency access door positions 17450 | -5/Upper Caves | Build established: Hacker-Mutant 17479 | -5/Upper Caves | Core integrity fell below 50% 17503 | -5/Upper Caves | Lost 3 allies 17826 | -5/Upper Caves | Build established: Scavenger-Mutant 17896 | -5/Upper Caves | Discovered new exit (range 7) 18566 | -5/Upper Caves | Build established: Hacker-Mutant 18682 | -5/Upper Caves | Entered Zhirov 18682 | -5/Zhirov | Discovered new exit (range 3) 18726 | -5/Zhirov | Met Zhirov 18787 | -5/Zhirov | Found Alien Artifact 18787 | -5/Zhirov | Identified Integrated Dissipator 18787 | -5/Zhirov | Installed Integrated Dissipator, increased core heat dissipation (+20) 18826 | -5/Zhirov | Found Alien Artifact 18920 | -5/Zhirov | Learned location of Testing (-2) 18924 | -5/Zhirov | Zhirov requested help retrieving the SGEMP Prototype 18931 | -5/Zhirov | Entered Proximity Caves 18950 | -4/Proximity Caves | Learned Research interactive machine intel 19047 | -4/Proximity Caves | Discovered new exit (range 3) 19047 | -4/Proximity Caves | Entered Factory 19047 | -4/Factory | Evolved 2 slots: Utility x2 19048 | -4/Factory | Identified exit to Upper Caves 19048 | -4/Factory | Identified exit to Research 19177 | -4/Factory | Repaired Cld. Nuclear Pulse Thruster 19227 | -4/Factory | Spotted B-86 Titan 19227 | -4/Factory | Assimilated B-86 Titan with FLK Orb 19274 | -4/Factory | Allied Derelicts emerged from ambush trap array 19284 | -4/Factory | Repaired Power Sword? 19403 | -4/Factory | Lost 3 allies 19408 | -4/Factory | Fabricated Exp. Propulsion Shielding (x1) 19463 | -4/Factory | Build established: Hacker-Scout 19560 | -4/Factory | Fabricated Adv. Hacking Suite (x1) 19638 | -4/Factory | Garrison activated, responded to threat 19644 | -4/Factory | Identified exit to Armory 19664 | -4/Factory | Identified Transdimensional Reconstructor 19697 | -4/Factory | Discovered exit to Research (range 5) 19890 | -4/Factory | Sucked down chute 19890 | -4/Factory | Entered Waste 19893 | -4/Waste | Spotted C-40 Crusher 19898 | -4/Waste | Spotted C-40 Crusher 19900 | -4/Waste | Spotted C-40 Crusher 19905 | -4/Waste | EMP discharged 19905 | -4/Waste | System corruption reached 10% 19908 | -4/Waste | Spotted C-40 Crusher 19911 | -4/Waste | Spotted C-40 Crusher 19922 | -4/Waste | Spotted C-40 Crusher 19922 | -4/Waste | Discovered new exit (range 11) 19925 | -4/Waste | Entered Factory 20112 | -4/Factory | Discovered exit to Research (range 11) 20222 | -4/Factory | Repaired Corrupted Adv. Surge Thruster? 20361 | -4/Factory | Fabricated E-15 Imp (x2) 20471 | -4/Factory | Fabricated Assault Drone Bay (x1) 20508 | -4/Factory | Fabricated M-36 Artificer (x1) 20519 | -4/Factory | Lost 7 parts (1p1n4u1w) 20625 | -4/Factory | Spotted B-86 Titan 20626 | -4/Factory | Assimilated B-86 Titan with FLK Orb 20641 | -4/Factory | Entered Armory 20825 | -4/Armory | Fabricated Adv. Hacking Suite? 20951 | -4/Armory | Fabricated Exp. Propulsion Shielding? 21082 | -4/Armory | Lost 3 parts (1p1n1w) 21093 | -4/Armory | Spotted B-86 Titan 21097 | -4/Armory | Core integrity fell below 50% 21098 | -4/Armory | Assimilated B-86 Titan with FLK Orb 21127 | -4/Armory | Spotted Armor Guard 21127 | -4/Armory | Spotted Armor Guard 21149 | -4/Armory | Core integrity fell below 20% 21152 | -4/Armory | Warped through subspace to slip node 21152 | -4/Armory | Discovered new exit (range 1) 21161 | -4/Armory | Entered Lab 21161 | -4/Lab | Discovered exit to Research (range 9) 21176 | -4/Lab | Lost 9 parts (1p5n3u) 21180 | -4/Lab | Unable to decrypt terminal 21180 | -4/Lab | Opened the door to a hidden lab 21181 | -4/Lab | Gained access to the hidden lab's interior 21181 | -4/Lab | Detected by scanners 21187 | -4/Lab | Unable to decrypt terminal 21190 | -4/Lab | Confronted by A5 21196 | -4/Lab | Found Alien Artifact 21196 | -4/Lab | Identified Core Reset Matrix 21196 | -4/Lab | Used Core Reset Matrix 21198 | -4/Lab | Destroyed by A5 with Heavy Tesla Rifle Last Messages --------------- 21180_ Connecting with NO ENTRY... 21180_ Current location identified: Lab 21180_ Access granted. >>\\LCX9 Access granted. [Achievement: Anyone Home?] Scanners sweep the area. 21181_ A0_COM: INTRUDER ALERT. 21187_ Connecting with Active System Cloaker... >>Record "Kj6Zs FZaHxk" KuSgOB rzAdDM0 WIJdOYHYedJ jm45AYY OF92v Ik63jcz 7YkFJ6LH J80Q2GGZvq ZKVh6SaMWWONbFv6gj4M4mb 21190_ A5: "Hey, you're not supposed to be here!" 21193_ Imp. System Shield destroyed. 21194_ System corrupted: Component data lost. 21196_ Acquired Alien Artifact. 21196_ Identified Core Reset Matrix. 21196_ Wiping memory... 21197_ CORE RESET Map ----- +----------------------------------------------------+ | | | | | | | | | | | | | | | | | | | | | | | | | | | | | | | ???????????????????????????????????????????????? | | ???????????????????????????????????????????????? | | ?????????????????????#?#???????????????????????? | | ?????????????????"??""" ???????????????????????? | | ?????????????????"""""""???????????????????????? | | ???????????????"!""!""!"#####??????????????????? | | ??????????? """"""""""" #??????????????????? | | ??????????? "#??????????????????? | | ?????????? ""#??????????????????? | | ?????????? ""#??????????????????? | | ?????????? @""#??????????????????? | | ?????????? "#??????????????????? | | ??????????# ""#??????????????????? | | ???????????"" ""#??????????????????? | | ????????????" p""#??????????????????? | | ????????????" "#??????????????????? | | ???????????? A??????????????????? | | ???????????? #??????????????????? | | ????????????? ???????????????????? | | ????????????? ???????????????????? | | ?????????????? ???????????????????? | | ?????????????? "???????????????????? | | ???????????????"""""""" "???????????????????? | | ????????????????????##" ????????????????????? | | ??????????????????????" ????????????????????? | | ??????????????????????? ????????????????????? | | ???????????????????????????????????????????????? | | ???????????????????????????????????????????????? | | ???????????????????????????????????????????????? | | ???????????????????????????????????????????????? | | ???????????????????????????????????????????????? | | ???????????????????????????????????????????????? | | ???????????????????????????????????????????????? | | ???????????????????????????????????????????????? | | ???????????????????????????????????????????????? | +----------------------------------------------------+ Best States ------------- Heat Dissipation 67 Energy Generation 25 Energy Capacity 850 Matter Stores 300 Matter Capacity 550 Sight Range 16 Robot Scan Range 16 Terrain Scan Range 16 Terrain Scan Density 10 ECM Strength 1 Jamming Range 14 Additional Mass Support 9 Armor Coverage 750 Resistance: EX 75 Resistance: EM 15 Core Shielding 20 Propulsion Shielding 90 Evasion (%) 73 Recoil Reduction 3 Offensive Hacking 38 Defensive Hacking 32 Authchip Count 1 Item Schematics ----------------- None Robot Schematics ------------------ None Fabricated ------------ Q-thruster | x2 | -5/Factory | Authchip Cld. Nuclear Pulse Thruster | x1 | -5/Factory Exp. Propulsion Shielding | x1 | -4/Factory Adv. Hacking Suite | x1 | -4/Factory E-15 Imp | x2 | -4/Factory | Preloaded Assault Drone Bay | x1 | -4/Factory M-36 Artificer | x1 | -4/Factory | Preloaded Adv. Hacking Suite | x1 | -4/Armory Alien Tech Used ----------------- Integrated Dissipator Transdimensional Reconstructor Core Reset Matrix Achievements -------------- Anyone Home? Challenges ------------ None Game ------ Seed DecoyBoreBasin Manual? 0 Play Time 04:24:10 Cumulative 150.3 hours Start 2024.11.13 @ 14:39:38 End 2024.11.13 @ 21:19:26 Sessions 3 Manual Loads 0 Difficulty Rogue Special Mode None Game No. 76 Rogue 13 Adventurer 63 Explorer 0 Win Type - Total 7 Types 7/0/0/0/0/0/0/0/0 Lore% 67 Gallery% 66 Achievement% 54 Wizard Run 0 Options --------- Layout 1 ASCII 0 Keyboard 1 Movement Numpad Keybinds 0 Fullscreen 2 Font 24/Tamsyn Map View 50x35 Zoom Use 0% Tactical HUD 1 Map Filters NONE Filters NONE Steam 1 RUN: c6ff12da-c53f-48e4-bed5-07613d1d57b4